[Event "4th EFE Metz Festival-WIM"]
[Site "Metz"]
[Date "2018.07.26"]
[Round "5"]
[White "Thomas, Anysia"]
[Black "Muetsch, Annmarie"]
[Result "0-1"]
[ECO "E10"]
[WhiteElo "2156"]
[BlackElo "2146"]
[Annotator "NA"]
[PlyCount "94"]
[EventDate "2018.07.22"]
[EventType "tourn"]
[EventCountry "FRA"]
[SourceTitle "playchess.com"]
[Source "ChessBase"]
[SourceQuality "1"]
[TimeControl "5400+30"]

1. d4 {[%emt 0:00:00]} Nf6 {[%emt 0:00:07]} 2. c4 {[%emt 0:00:00]} e6 {[%emt 0:00:07]} 3. Nf3 {[%emt 0:00:00]} d5 {[%emt 0:00:08]} 4. g3 {[%emt 0:00:00]} Bb4+ {[%emt 0:00:08]} 5. Nbd2 {[%emt 0:01:46]} O-O {[%emt 0:00:23]} 6. Bg2 {[%emt 0:00:03]} Re8 {[%emt 0:02:30]} 7. O-O {[%emt 0:00:14]} Nbd7 {[%emt 0:00:45]} 8. Qc2 {[%emt 0:01:23]} c5 {[%emt 0:11:19]} 9. a3 {[%emt 0:06:20]} Bxd2 {[%emt 0:01:08]} 10. Bxd2 {[%emt 0:00:10]} cxd4 {[%emt 0:01:50]} 11. Nxd4 {[%emt 0:00:55]} Nb6 {[%emt 0:09:02]} 12. Ba5 {[%emt 0:15:40]} dxc4 {[%emt 0:26:16]} 13. Rfd1 {[%emt 0:01:48]} Qc7 {[%emt 0:01:32]} 14. Nb5 {[%emt 0:02:04]} Qc5 {[%emt 0:00:07]} 15. a4 {[%emt 0:00:38]} Nbd5 {[%emt 0:13:35]} 16. e4 {[%emt 0:09:30]} a6 {[%emt 0:00:29]} 17. b4 {[%emt 0:06:10]} Qf8 {[%emt 0:00:56]} 18. exd5 {[%emt 0:04:03]} axb5 {[%emt 0:00:05]} 19. d6 {[%emt 0:00:38]} bxa4 {[%emt 0:01:15]} 20. Qxc4 {[%emt 0:05:15]} e5 {[%emt 0:05:12]} 21. Qc7 {[%emt 0:05:55]} e4 {[%emt 0:01:19]} 22. Bb6 {[%emt 0:24:14]} Bd7 {[%emt 0:04:32]} 23. Bd4 {[%emt 0:07:44]} Rec8 {[%emt 0:00:33]} 24. Qxb7 {[%emt 0:01:13]} Rcb8 {[%emt 0:11:33]} 25. Qc7 {[%emt 0:00:04]} Rc8 {[%emt 0:00:07]} 26. Qb7 {[%emt 0:00:04]} Rcb8 {[%emt 0:00:03]} 27. Qc7 {[%emt 0:00:13]} Rc8 {[%emt 0:00:05]} 28. Qb6 {[%emt 0:02:25]} Nd5 {[%emt 0:01:04]} 29. Bxg7 {[%emt 0:02:43]} Qxg7 {[%emt 0:01:47]} 30. Qd4 {[%emt 0:00:12]} Qxd4 {[%emt 0:00:06]} 31. Rxd4 {[%emt 0:00:02]} Nc3 {[%emt 0:00:13]} 32. Kf1 {[%emt 0:00:35]} f5 {[%emt 0:00:17]} 33. g4 {[%emt 0:00:33]} a3 {[%emt 0:02:17]} 34. gxf5 {[%emt 0:00:33]} a2 {[%emt 0:00:24]} 35. Ke1 {[%emt 0:02:34]} Bxf5 {[%emt 0:00:58]} 36. d7 {[%emt 0:01:30]} Rd8 {[%emt 0:00:08]} 37. Rc4 {[%emt 0:00:16]} Nd5 {[%emt 0:01:02]} 38. Rc8 {[%emt 0:00:33]} Nxb4 {[%emt 0:00:35]} 39. Rc4 {[%emt 0:00:45]} Rab8 {[%emt 0:01:05]} 40. Ke2 {[%emt 0:00:30]} Rxd7 {[%emt 0:00:29]} 41. Bxe4 {[%emt 0:00:20]} Bxe4 {[%emt 0:00:07]} 42. Rxe4 {[%emt 0:00:04]} Kf7 {[%emt 0:01:08]} 43. f3 {[%emt 0:00:32]} Re8 {[%emt 0:01:05]} 44. Rxe8 {[%emt 0:01:04]} Kxe8 {[%emt 0:00:07]} 45. f4 {[%emt 0:00:16]} Ke7 {[%emt 0:00:13]} 46. h3 {[%emt 0:00:30]} Kf6 {[%emt 0:00:08]} 47. h4 {[%emt 0:00:45]} h5 {[%emt 0:00:05]} 0-1

[Event "4th EFE Metz Festival-WIM"]
[Site "Metz"]
[Date "2018.07.26"]
[Round "5"]
[White "Broly, Mathilde"]
[Black "Moskalets, Svetlana"]
[Result "1/2-1/2"]
[ECO "B12"]
[WhiteElo "2149"]
[BlackElo "2208"]
[Annotator "NA"]
[PlyCount "46"]
[EventDate "2018.07.22"]
[EventType "tourn"]
[EventCountry "FRA"]
[SourceTitle "playchess.com"]
[Source "ChessBase"]
[SourceQuality "1"]
[TimeControl "5400+30"]

1. e4 {[%emt 0:00:00]} c6 {[%emt 0:00:45]} 2. d4 {[%emt 0:01:09]} d5 {[%emt 0:00:01]} 3. e5 {[%emt 0:00:08]} Bf5 {[%emt 0:00:14]} 4. h4 {[%emt 0:00:30]} h5 {[%emt 0:01:13]} 5. Bd3 {[%emt 0:01:24]} Bxd3 {[%emt 0:01:20]} 6. Qxd3 {[%emt 0:00:08]} Qa5+ {[%emt 0:02:14]} 7. Bd2 {[%emt 0:02:27]} Qa6 {[%emt 0:00:23]} 8. Qxa6 {[%emt 0:13:00]} Nxa6 {[%emt 0:00:07]} 9. Nf3 {[%emt 0:00:38]} e6 {[%emt 0:00:12]} 10. O-O {[%emt 0:02:33]} Ne7 {[%emt 0:04:41]} 11. c3 {[%emt 0:03:47]} Nf5 {[%emt 0:05:31]} 12. a4 {[%emt 0:12:36]} Be7 {[%emt 0:12:32]} 13. g3 {[%emt 0:01:44]} c5 {[%emt 0:02:48]} 14. Na3 {[%emt 0:01:15]} Kd7 {[%emt 0:02:16]} 15. Rfc1 {[%emt 0:02:28]} Rhc8 {[%emt 0:00:39]} 16. Nc2 {[%emt 0:06:37]} cxd4 {[%emt 0:05:36]} 17. cxd4 {[%emt 0:01:52]} Rc6 {[%emt 0:02:36]} 18. Kf1 {[%emt 0:09:34]} Rac8 {[%emt 0:00:32]} 19. Bc3 {[%emt 0:00:55]} Rc4 {[%emt 0:03:57]} 20. Ke2 {[%emt 0:01:50]} R4c7 {[%emt 0:17:39]} 21. Kd2 {[%emt 0:00:36]} Rc4 {[%emt 0:00:51]} 22. Ke2 {[%emt 0:02:58]} R4c7 {[%emt 0:01:45]} 23. Kd2 {[%emt 0:00:14]} Rc4 {[%emt 0:04:25]} 1/2-1/2

[Event "4th EFE Metz Festival-WIM"]
[Site "Metz"]
[Date "2018.07.27"]
[Round "6"]
[White "Zozulia, Anna"]
[Black "Broly, Mathilde"]
[Result "1/2-1/2"]
[ECO "C50"]
[WhiteElo "2300"]
[BlackElo "2149"]
[Annotator "ChessBase"]
[PlyCount "61"]
[EventDate "2018.07.22"]
[EventType "tourn"]
[EventCountry "FRA"]
[SourceTitle "playchess.com"]
[Source "ChessBase"]
[SourceQuality "1"]
[TimeControl "5400+30"]

1. e4 {[%emt 0:00:00]} e5 {[%emt 0:00:42]} 2. Bc4 {[%emt 0:00:48]} Nc6 {[%emt 0:04:42]} 3. d3 {[%emt 0:00:44]} Bc5 {[%emt 0:04:57]} 4. Nf3 {[%emt 0:02:10]} d6 {[%emt 0:03:04]} 5. c3 {[%emt 0:07:03]} Nf6 {[%emt 0:08:55]} 6. O-O {[%emt 0:02:25]} O-O {[%emt 0:02:18]} 7. Nbd2 {[%emt 0:15:55]} a5 {[%emt 0:05:20]} 8. h3 {[%emt 0:02:35]} Be6 {[%emt 0:01:22]} 9. Re1 {[%emt 0:04:01]} Ba7 {[%emt 0:11:19]} 10. a4 {[%emt 0:14:41]} Re8 {[%emt 0:08:46]} 11. Qb3 {[%emt 0:02:50]} Qd7 {[%emt 0:02:31]} 12. Nf1 {[%emt 0:07:59]} d5 {[%emt 0:09:20]} 13. exd5 {[%emt 0:02:46]} Bxd5 {[%emt 0:00:08]} 14. Bxd5 {[%emt 0:06:06]} Qxd5 {[%emt 0:01:58]} 15. Qxd5 {[%emt 0:00:05]} Nxd5 {[%emt 0:00:06]} 16. Be3 {[%emt 0:00:26]} Bxe3 {[%emt 0:03:04]} 17. Nxe3 {[%emt 0:00:58]} Nf4 {[%emt 0:01:08]} 18. Rad1 {[%emt 0:07:30]} Rad8 {[%emt 0:02:41]} 19. d4 {[%emt 0:00:36]} exd4 {[%emt 0:01:43]} 20. cxd4 {[%emt 0:01:56]} Nb4 {[%emt 0:01:29]} 21. g3 {[%emt 0:02:08]} Nfd5 {[%emt 0:00:50]} 22. Nc4 {[%emt 0:00:36]} b6 {[%emt 0:00:18]} 23. Kf1 {[%emt 0:01:07]} f6 {[%emt 0:00:14]} 24. Rxe8+ {[%emt 0:02:57]} Rxe8 {[%emt 0:00:13]} 25. Re1 {[%emt 0:00:02]} Kf7 {[%emt 0:00:40]} 26. Rxe8 {[%emt 0:00:15]} Kxe8 {[%emt 0:00:06]} 27. Ke2 {[%emt 0:00:10]} Ke7 {[%emt 0:00:06]} 28. Kd2 {[%emt 0:00:06]} Ke6 {[%emt 0:00:06]} 29. Ke2 {[%emt 0:01:02]} Nc6 {[%emt 0:00:57]} 30. Kd3 {[%emt 0:00:16]} Ncb4+ {[%emt 0:02:01]} 31. Ke4 {Ke5+} 1/2-1/2

[Event "4th EFE Metz Festival-WIM"]
[Site "Metz"]
[Date "2018.07.27"]
[Round "6"]
[White "Moskalets, Svetlana"]
[Black "Thomas, Anysia"]
[Result "1-0"]
[ECO "B31"]
[WhiteElo "2208"]
[BlackElo "2156"]
[Annotator "NA"]
[PlyCount "93"]
[EventDate "2018.07.22"]
[EventType "tourn"]
[EventCountry "FRA"]
[SourceTitle "playchess.com"]
[Source "ChessBase"]
[SourceQuality "1"]
[TimeControl "5400+30"]

1. e4 {[%emt 0:00:00]} c5 {[%emt 0:00:15]} 2. Nf3 {[%emt 0:01:03]} Nc6 {[%emt 0:00:04]} 3. Bb5 {[%emt 0:01:19]} g6 {[%emt 0:00:05]} 4. Bxc6 {[%emt 0:00:29]} bxc6 {[%emt 0:00:04]} 5. O-O {[%emt 0:00:24]} Bg7 {[%emt 0:00:07]} 6. d3 {[%emt 0:01:00]} e5 {[%emt 0:01:33] B31: Sizilianisch (Rossolimo-Variante)} (6... d6 7. h3 e5 8. c3 Ne7 9. d4 cxd4 10. cxd4 exd4 11. Nxd4 O-O 12. Nc3 h6 13. Be3 Kh7 14. Qd2 Rb8 15. b3 {1-0 (43) Tomashevsky,E (2716)-Li,C (2720) Doha 2016}) 7. c3 {[%emt 0:11:56]} Ne7 {[%emt 0:10:00]} 8. Be3 {[%emt 0:05:24]} d6 {[%emt 0:01:32]} 9. d4 {[%emt 0:01:50]} cxd4 {[%emt 0:12:31]} 10. cxd4 {[%emt 0:00:02]} f5 $146 {[%emt 0:10:36]} ({Vorgänger:} 10... exd4 11. Bxd4 f6 12. Qb3 Qd7 13. Ng5 {½-½ (77) Szente Varga,F (2202)-Gagarin,V (2289) Stockholm 2014}) 11. exf5 {[%emt 0:09:46]} Bxf5 {[%emt 0:02:17]} ({Black should try} 11... e4 $15 12. Ng5 Bxf5) 12. dxe5 {[%emt 0:03:41]} dxe5 {[%emt 0:00:18]} 13. Qc1 {[%emt 0:03:24]} Bg4 {[%emt 0:07:26]} (13... e4 $11 14. Nh4 O-O) 14. Ng5 {[%emt 0:05:47]} Qc8 {[%emt 0:05:53]} 15. Qc4 {[%emt 0:02:31]} Nd5 {[%emt 0:02:33]} 16. Bc5 {[%emt 0:01:45]} Qd7 {[%emt 0:12:38]} 17. Ne4 {[%emt 0:02:36]} O-O-O {[%emt 0:00:56]} 18. Nbc3 {[%emt 0:05:10]} Kb8 {[%emt 0:01:16]} 19. Bd6+ {[%emt 0:00:50]} Ka8 {[%emt 0:00:22]} 20. Nxd5 {[%emt 0:07:17]} cxd5 {[%emt 0:00:04]} 21. Qxd5+ {[%emt 0:00:07]} Qb7 {[%emt 0:00:10]} 22. Qxb7+ {[%emt 0:01:48]} Kxb7 {[%emt 0:02:23]} 23. Rac1 {[%emt 0:00:54]} Rc8 {[%emt 0:01:47]} 24. Bc5 {[%emt 0:00:34]} Rc6 {[%emt 0:05:25]} 25. Nd6+ $2 {[%emt 0:01:09]} Kc7 $1 {[%emt 0:00:13]} 26. Nb5+ {[%emt 0:04:00]} Kb7 {[%emt 0:00:31]} 27. Nd6+ {[%emt 0:02:17]} (27. Nxa7 $18 Ra6 28. Nb5) 27... Kc7 {[%emt 0:00:15]} 28. Nf7 {[%emt 0:01:05]} Re8 {[%emt 0:03:09] [#]} 29. Bxa7 {[%emt 0:02:41]} ({Lieber} 29. b4 $1 $18) 29... Be6 {[%emt 0:07:17] [#]} 30. Rxc6+ $1 {[%emt 0:01:56]} Kxc6 {[%emt 0:00:04]} 31. Rc1+ {[%emt 0:00:16]} Kd7 {[%emt 0:00:44]} 32. Rd1+ $18 {[%emt 0:00:39]} Kc7 {[%emt 0:03:35]} 33. Nd6 {[%emt 0:01:26]} Ra8 {[%emt 0:00:56]} 34. Nb5+ {[%emt 0:00:50]} Kb7 {[%emt 0:04:58]} 35. Rc1 {[%emt 0:05:27]} Ka6 {[%emt 0:00:43]} 36. a4 {[%emt 0:02:25]} Ka5 {[%emt 0:02:35]} 37. Nc7 {[%emt 0:05:04]} Rxa7 {[%emt 0:00:50]} 38. Nxe6 {[%emt 0:00:02]} Bh6 {[%emt 0:00:11]} 39. Re1 {[%emt 0:00:24]} Rd7 {[%emt 0:01:14]} 40. Rxe5+ {[%emt 0:00:15]} Kb4 {[%emt 0:00:23]} 41. Re4+ {[%emt 0:00:17]} Ka5 {[%emt 0:00:32]} 42. b4+ {[%emt 0:00:14]} Kb6 {[%emt 0:00:16]} 43. g4 {[%emt 0:00:10]} Bd2 {[%emt 0:00:36]} 44. Kg2 {[%emt 0:00:26]} Bc3 {[%emt 0:00:27]} 45. Nc5 {[%emt 0:00:12]} Rd2 {[%emt 0:00:35]} 46. Re6+ {[%emt 0:00:12]} Kc7 {[%emt 0:00:19]} 47. Ne4 1-0

[Event "4th EFE Metz Festival-WIM"]
[Site "Metz"]
[Date "2018.07.27"]
[Round "6"]
[White "Muetsch, Annmarie"]
[Black "Terbe, Zsuzsanna"]
[Result "1-0"]
[ECO "B31"]
[WhiteElo "2146"]
[BlackElo "2178"]
[Annotator "NA"]
[PlyCount "87"]
[EventDate "2018.07.22"]
[EventType "tourn"]
[EventCountry "FRA"]
[SourceTitle "playchess.com"]
[Source "ChessBase"]
[SourceQuality "1"]
[TimeControl "5400+30"]

1. e4 {[%emt 0:00:00]} c5 {[%emt 0:00:08]} 2. Nf3 {[%emt 0:00:00]} Nc6 {[%emt 0:00:08]} 3. Bb5 {[%emt 0:00:00]} g6 {[%emt 0:00:34]} 4. Bxc6 {[%emt 0:00:00]} bxc6 {[%emt 0:00:07]} 5. d4 {[%emt 0:00:07]} Bg7 {[%emt 0:07:46] B31: Sicilian: 2...Nc6 3 Bb5 g6} 6. dxc5 {[%emt 0:01:39]} (6. O-O cxd4 7. Nxd4 Qb6 8. Be3 c5 9. Nb3 d6 10. N1d2 Ba6 11. c4 Rd8 12. h3 e6 13. Qg4 {½-½ (31) Delgado Ramirez,N (2618)-Zhigalko,S (2652) Baku 2016}) 6... Qa5+ {[%emt 0:18:55]} 7. Nbd2 {[%emt 0:00:35]} Ba6 {[%emt 0:01:38]} 8. Rb1 {[%emt 0:03:12]} Qxc5 {[%emt 0:07:02]} 9. b4 {[%emt 0:01:10]} Qh5 $146 {[%emt 0:08:36]} ({Predecessor:} 9... Qb6 10. c4 Nf6 11. O-O O-O 12. Ba3 d6 13. Qc2 {1-0 (45) Gadimbayli,A (2330)-Kazakovskiy,V (2328) Kirishi 2016}) 10. c4 {[%emt 0:04:59]} Nf6 {[%emt 0:00:59]} 11. Bb2 {[%emt 0:06:53]} O-O {[%emt 0:02:27]} 12. O-O {[%emt 0:01:30]} Rab8 {[%emt 0:03:52]} (12... Rfb8 $142) 13. Bd4 {[%emt 0:04:15]} Bb7 {[%emt 0:04:09]} 14. Re1 {[%emt 0:11:44]} a6 {[%emt 0:01:42]} (14... d6 $16) 15. e5 {[%emt 0:05:26]} Ne8 {[%emt 0:03:46]} 16. Ne4 {[%emt 0:10:36]} h6 {[%emt 0:09:53]} 17. Ng3 {[%emt 0:11:01]} Qg4 {[%emt 0:00:42]} 18. Re4 {[%emt 0:00:41]} Qe6 {[%emt 0:00:31]} 19. Bc5 {[%emt 0:03:36]} Kh7 {[%emt 0:05:12]} 20. Qe2 {[%emt 0:02:11]} g5 {[%emt 0:01:25]} 21. h4 {[%emt 0:02:59]} gxh4 {[%emt 0:03:29]} 22. Nxh4 {[%emt 0:00:11]} Rg8 {[%emt 0:02:20]} 23. f4 {[%emt 0:02:53]} f6 {[%emt 0:00:30]} 24. f5 {[%emt 0:04:38]} Qf7 {[%emt 0:00:06]} 25. e6 {[%emt 0:00:06]} dxe6 {[%emt 0:00:02]} 26. fxe6 {[%emt 0:00:11]} Qf8 {[%emt 0:00:09]} 27. Qh5 {[%emt 0:05:13]} f5 {[%emt 0:03:16] [#]} 28. Bxe7 $18 {[%emt 0:02:38]} fxe4 {[%emt 0:03:52]} 29. Bxf8 {[%emt 0:00:06]} Rxf8 {[%emt 0:00:16]} 30. Qg6+ {[%emt 0:01:27]} Kh8 {[%emt 0:01:45]} 31. Nh5 {[%emt 0:01:57]} Bc8 {[%emt 0:05:24]} 32. Nxg7 {[%emt 0:01:42]} Nxg7 {[%emt 0:00:05]} 33. Qxh6+ {[%emt 0:00:17]} Kg8 {[%emt 0:00:05]} 34. e7 {[%emt 0:04:32]} Re8 {[%emt 0:00:15]} 35. Rf1 {[%emt 0:02:01]} Bd7 {[%emt 0:01:07]} 36. Ng6 {[%emt 0:00:49]} Nf5 {[%emt 0:00:06]} 37. Qg5 {[%emt 0:01:07]} Ng7 {[%emt 0:00:43]} 38. Rf8+ {[%emt 0:00:18]} Rxf8 {[%emt 0:02:07]} 39. exf8=Q+ {[%emt 0:00:09]} Rxf8 {[%emt 0:00:04]} 40. Nxf8 {[%emt 0:00:09]} Kxf8 {[%emt 0:00:03]} 41. Qf4+ {[%emt 0:00:24]} Ke7 {[%emt 0:00:19]} 42. Qxe4+ {[%emt 0:00:09]} Ne6 {[%emt 0:00:03]} 43. Qe5 {[%emt 0:00:24]} Kd8 {[%emt 0:00:20]} 44. g4 {[%emt 0:00:18]} 1-0

[Event "4th EFE Metz Festival-WIM"]
[Site "Metz"]
[Date "2018.07.27"]
[Round "6"]
[White "Soubirou, Oriane"]
[Black "Terbe, Julianna"]
[Result "1/2-1/2"]
[ECO "B21"]
[WhiteElo "2105"]
[BlackElo "2238"]
[Annotator "NA"]
[PlyCount "128"]
[EventDate "2018.07.22"]
[EventType "tourn"]
[EventCountry "FRA"]
[SourceTitle "playchess.com"]
[Source "ChessBase"]
[SourceQuality "1"]
[TimeControl "5400+30"]

1. e4 {[%emt 0:22:07]} c5 {[%emt 0:00:29]} 2. d4 {[%emt 0:00:25]} cxd4 {[%emt 0:00:47]} 3. c3 {[%emt 0:00:09]} Nf6 {[%emt 0:00:51]} 4. e5 {[%emt 0:00:40]} Nd5 {[%emt 0:00:05]} 5. Qxd4 {[%emt 0:00:18]} e6 {[%emt 0:00:14]} 6. Bd3 {[%emt 0:00:53]} Nc6 {[%emt 0:00:07] B22: Sicilian: 2 c3} 7. Qe4 {[%emt 0:00:06]} f5 {[%emt 0:00:03]} (7... d6 8. exd6 Bxd6 9. Nf3 Qc7 10. O-O Bd7 11. Na3 f5 12. Qh4 Bxa3 13. bxa3 Ne5 14. Nxe5 Qxe5 {1-0 (53) Deviatkin,A (2580)-Malakhov,I (2428) St Petersburg 2011}) 8. Qe2 {[%emt 0:00:45]} Be7 {[%emt 0:01:47]} 9. Nf3 {[%emt 0:00:34]} O-O {[%emt 0:00:41]} 10. O-O {[%emt 0:00:10]} Qc7 {[%emt 0:07:55]} 11. a3 {[%emt 0:17:22]} Na5 12. c4 {[%emt 0:09:54]} Nb3 {[%emt 0:13:52]} 13. cxd5 {[%emt 0:00:28]} Nxc1 {[%emt 0:02:20]} 14. Qc2 {[%emt 0:00:31]} Qxc2 {[%emt 0:00:08]} 15. Bxc2 {[%emt 0:00:08]} Ne2+ {[%emt 0:00:08]} 16. Kh1 {[%emt 0:00:10]} Bc5 $146 {[%emt 0:04:31]} 17. Nbd2 {[%emt 0:16:59]} b5 {[%emt 0:12:37]} 18. Bb3 {[%emt 0:12:47]} h6 {[%emt 0:06:51]} 19. a4 {[%emt 0:05:42]} g5 {[%emt 0:07:50]} 20. axb5 {[%emt 0:01:40]} Nf4 {[%emt 0:00:08]} 21. dxe6 {[%emt 0:02:17]} dxe6 {[%emt 0:00:17]} 22. Bc4 {[%emt 0:03:47]} g4 {[%emt 0:05:04]} 23. Ne1 {[%emt 0:01:40]} Bd4 {[%emt 0:00:27]} 24. f3 {[%emt 0:01:32]} Bxb2 {[%emt 0:01:52]} 25. Rb1 {[%emt 0:00:07]} Bxe5 $15 {[%emt 0:00:06]} 26. Nd3 {[%emt 0:01:10]} Nxd3 {[%emt 0:08:55]} 27. Bxd3 {[%emt 0:00:02]} Bb7 {[%emt 0:00:18]} 28. fxg4 {[%emt 0:00:55]} fxg4 {[%emt 0:01:12]} 29. Be4 {[%emt 0:00:23]} Bxe4 {[%emt 0:01:39]} 30. Nxe4 {[%emt 0:00:02]} Rxf1+ {[%emt 0:00:38]} 31. Rxf1 {[%emt 0:00:02]} Rc8 {[%emt 0:00:24]} 32. g3 {[%emt 0:00:52]} Kg7 {[%emt 0:00:07]} 33. Nf2 {[%emt 0:00:32]} h5 {[%emt 0:01:34]} 34. Rd1 {[%emt 0:00:52]} Rc7 {[%emt 0:02:51]} 35. Kg2 {[%emt 0:00:48]} Rc2 {[%emt 0:01:39]} 36. Rd7+ {[%emt 0:00:34]} Kg6 {[%emt 0:00:15]} 37. Kf1 {[%emt 0:00:06]} Rb2 {[%emt 0:00:42]} 38. Nd3 {[%emt 0:00:33]} Rb1+ {[%emt 0:00:44]} 39. Kg2 {[%emt 0:00:08]} Rxb5 {[%emt 0:01:58]} 40. Rxa7 {[%emt 0:00:38]} Rd5 {[%emt 0:03:22]} 41. Nxe5+ {[%emt 0:00:47]} Rxe5 {[%emt 0:00:02]} 42. Ra2 {[%emt 0:00:42]} Kf5 {[%emt 0:00:22]} 43. Kf2 {[%emt 0:00:30]} Rb5 {[%emt 0:00:28]} 44. Ke2 {[%emt 0:00:29]} e5 {[%emt 0:00:26]} 45. Kf2 {[%emt 0:00:30]} Rb3 {[%emt 0:00:20]} 46. Re2 {[%emt 0:00:25]} h4 {[%emt 0:02:58]} 47. gxh4 {[%emt 0:00:43]} Rh3 {[%emt 0:00:02]} 48. Kg2 {[%emt 0:00:33]} Rxh4 {[%emt 0:00:02]} 49. Ra2 {[%emt 0:00:16]} Rh3 {[%emt 0:00:58]} 50. Ra8 {[%emt 0:00:20]} Rb3 {[%emt 0:02:24]} 51. Rf8+ {[%emt 0:00:19]} Ke4 {[%emt 0:00:07]} 52. Rg8 {[%emt 0:00:11]} Kf4 {[%emt 0:00:19]} 53. Rf8+ {[%emt 0:00:07]} Ke3 {[%emt 0:01:18]} 54. Kg3 {[%emt 0:00:59]} Ke2+ {[%emt 0:02:18]} 55. Kxg4 {[%emt 0:00:07]} e4 {[%emt 0:00:02]} 56. h4 {[%emt 0:00:32]} e3 {[%emt 0:00:04]} 57. h5 {[%emt 0:00:45]} Rb4+ {[%emt 0:01:10]} 58. Kg5 {[%emt 0:00:19]} Kd3 {[%emt 0:01:00]} 59. Rd8+ {[%emt 0:00:32]} Rd4 {[%emt 0:00:45]} 60. Rxd4+ {[%emt 0:00:17]} Kxd4 {[%emt 0:00:02]} 61. h6 {[%emt 0:00:05]} e2 {[%emt 0:00:04]} 62. h7 {[%emt 0:00:04]} e1=Q {[%emt 0:00:03]} 63. h8=Q+ {[%emt 0:00:06]} Qe5+ {[%emt 0:00:03]} 64. Qxe5+ Kxe5 1/2-1/2

[Event "4th EFE Metz Festival-WIM"]
[Site "Metz"]
[Date "2018.07.27"]
[Round "6"]
[White "Schweitzer, Victoria"]
[Black "Afraoui, Anaelle"]
[Result "1-0"]
[ECO "B23"]
[WhiteElo "2097"]
[BlackElo "2056"]
[Annotator "NA"]
[PlyCount "45"]
[EventDate "2018.07.22"]
[EventType "tourn"]
[EventCountry "FRA"]
[SourceTitle "playchess.com"]
[Source "ChessBase"]
[SourceQuality "1"]
[TimeControl "5400+30"]

1. e4 {[%emt 0:00:00]} c5 {[%emt 0:00:07]} 2. Nc3 {[%emt 0:00:00]} Nc6 {[%emt 0:00:08]} 3. f4 {[%emt 0:00:02]} d6 {[%emt 0:00:35]} 4. Nf3 {[%emt 0:00:08]} Nf6 {[%emt 0:00:10]} 5. Bb5 {[%emt 0:00:20]} e6 {[%emt 0:04:46]} 6. O-O {[%emt 0:00:11]} Bd7 {[%emt 0:01:13]} 7. d3 {[%emt 0:07:16]} Be7 {[%emt 0:02:04]} 8. e5 {[%emt 0:02:24] B23: Closed Sicilian: Lines without g3} dxe5 {[%emt 0:07:38]} 9. fxe5 {[%emt 0:00:56]} Nd5 {[%emt 0:01:49]} 10. Ne4 {[%emt 0:06:43]} O-O $1 {[%emt 0:03:34] LiveBook: 3 Games} 11. c4 {[%emt 0:22:23]} Nc7 {[%emt 0:05:25]} 12. Be3 $146 {[%emt 0:02:40]} ({Predecessor:} 12. Bxc6 Bxc6 13. Qe2 Ne8 14. Bf4 Rc8 15. Rad1 f5 {1-0 (42) Vasiukov,E (2482)-Pribyl,J (2346) Velden 2009}) 12... b6 {[%emt 0:06:34]} 13. Bxc6 {[%emt 0:11:42]} Bxc6 {[%emt 0:00:13]} 14. Qe2 {[%emt 0:00:22]} Ne8 {[%emt 0:05:39]} 15. Rad1 {[%emt 0:04:34]} Qc7 {[%emt 0:03:31]} 16. Bd2 {[%emt 0:09:02]} Rd8 {[%emt 0:04:44]} 17. Bc3 {[%emt 0:00:05]} Qb7 {[%emt 0:01:15]} 18. Ng3 {[%emt 0:01:20]} Nc7 {[%emt 0:09:03]} 19. Nh5 {[%emt 0:02:03]} Rd7 {[%emt 0:05:52] [#]} 20. Nf6+ $18 {[%emt 0:11:54]} Bxf6 {[%emt 0:18:45]} 21. exf6 {[%emt 0:00:07]} g6 {[%emt 0:00:09]} 22. Qe3 {[%emt 0:00:59]} Bxf3 {[%emt 0:06:26]} 23. Qh6 {[%emt 0:00:36]} 1-0

[Event "4th EFE Metz Festival-WIM"]
[Site "Metz"]
[Date "2018.07.27"]
[Round "7"]
[White "Terbe, Julianna"]
[Black "Muetsch, Annmarie"]
[Result "1-0"]
[ECO "A05"]
[WhiteElo "2238"]
[BlackElo "2146"]
[Annotator "NA"]
[PlyCount "51"]
[EventDate "2018.07.22"]
[EventType "tourn"]
[EventCountry "FRA"]
[SourceTitle "playchess.com"]
[Source "ChessBase"]
[SourceQuality "1"]
[TimeControl "5400+30"]

1. Nf3 {[%emt 0:00:00]} Nf6 {[%emt 0:00:10]} 2. g3 {[%emt 0:00:00]} e6 {[%emt 0:00:06]} 3. Bg2 {[%emt 0:00:00]} d5 {[%emt 0:00:05]} 4. O-O {[%emt 0:00:00]} Be7 {[%emt 0:00:05]} 5. c4 {[%emt 0:00:00]} O-O {[%emt 0:00:15]} 6. d4 {[%emt 0:00:00]} b6 {[%emt 0:00:28]} 7. cxd5 {[%emt 0:00:36]} exd5 {[%emt 0:00:10]} 8. Nc3 {[%emt 0:00:20]} c5 {[%emt 0:00:47]} 9. Bf4 {[%emt 0:05:29]} Bb7 {[%emt 0:02:16]} 10. Rc1 {[%emt 0:00:15]} Nc6 {[%emt 0:06:54]} 11. dxc5 {[%emt 0:03:52]} bxc5 {[%emt 0:01:14]} 12. Na4 {[%emt 0:00:46]} c4 {[%emt 0:09:23]} 13. Nd4 {[%emt 0:05:23]} Nxd4 {[%emt 0:01:40]} 14. Qxd4 {[%emt 0:00:07]} Bc6 {[%emt 0:06:31]} 15. Nc3 {[%emt 0:00:46]} Qa5 {[%emt 0:02:23]} 16. Rfd1 {[%emt 0:05:13]} Rfd8 {[%emt 0:20:45]} 17. h3 {[%emt 0:10:03]} Bc5 {[%emt 0:06:06]} 18. Bc7 {[%emt 0:00:24]} Bb6 {[%emt 0:10:53]} 19. Bxb6 {[%emt 0:00:08]} axb6 {[%emt 0:00:20]} 20. a3 {[%emt 0:05:34]} Rac8 {[%emt 0:05:17]} 21. e4 {[%emt 0:01:13]} dxe4 {[%emt 0:06:05]} 22. Qxd8+ {[%emt 0:00:08]} Rxd8 {[%emt 0:00:04]} 23. Rxd8+ {[%emt 0:00:05]} Ne8 {[%emt 0:00:54]} 24. Bxe4 {[%emt 0:00:49]} b5 {[%emt 0:02:46]} 25. Rcd1 {[%emt 0:00:08]} Qc7 {[%emt 0:01:19]} 26. R1d6 {[%emt 0:07:59]} 1-0